Cogmind - Beta 15 @@@ ROGUE MODE // 2025.08.07 @ 21:59:17 Player: karotgaemin Result: Self-destructed Performance ------------- Evolutions (2) 1000 Regions Visited (4) 800 Robots Destroyed (60) 300 Value Destroyed (1650) 1650 Prototype IDs (0) 0 Alien Tech Used (0) 0 Bonus (0) 0 TOTAL SCORE: 3750 Bonus ------- None Cogmind --------- Core Integrity 179/550 Matter 245/300 Energy 290/290 System Corruption 3% Temperature Cool (-100) Movement Walking (400) Ox4 Location -8/Materials Parts ------- > --- POWER (1) -------- Reinforced Deuterium Engine > --- PROPULSION (4) --- Aluminum Leg Wheel Wheel > --- UTILITY (4) ------ Cryofiber Web Large Storage Unit Weapon Cycler Transmission Jammer > --- WEAPON (2) ------- Pulse Rifle Mini Grenade Launcher > --- INVENTORY (15) --- Light Deuterium Engine Light Nuclear Core Light Nuclear Core Light Nuclear Core Shock Rifle Pulse Rifle Pulse Rifle Pulse Rifle Beam Cannon Peak State ------------ > --- POWER ------------ Reinforced Deuterium Engine > --- PROPULSION ------- VSS Leg Wheel Wheel Wheel > --- UTILITY ---------- Cryofiber Web Large Storage Unit Weapon Cycler Transmission Jammer > --- WEAPON ----------- Pulse Rifle Heavy Particle Cannon > --- INVENTORY -------- Light Deuterium Engine Light Nuclear Core Light Nuclear Core Light Nuclear Core Shock Rifle Pulse Rifle Pulse Rifle Pulse Rifle Beam Cannon Mini Grenade Launcher [Rating: 30] Favorites ----------- Power Ion Engine Engine Ion Engine Power Core Light Nuclear Core Propulsion Aluminum Leg Leg Aluminum Leg Wheel Wheel Utility Large Storage Unit Device Heat Sink Storage Large Storage Unit Protection Light Armor Plating Weapon Beam Cannon Energy Gun Pulse Rifle Energy Cannon Beam Cannon Launcher Mini Grenade Launcher Build | -11 -10 -10 -9 -8 ------- Run | Yrd Mat Min Mat Mat Slots Evolved 4 | . . . 2 2 Power . | . . . . . Propulsion 2 | . . . 2 . Utility 2 | . . . . 2 Weapon . | . . . . . Parts Attached 53 | 6 10 . 6 31 Power 13 | 1 4 . 2 6 Engine 9 | 1 4 . 2 2 Core 4 | . . . . 4 Reactor . | . . . . . Propulsion 15 | 2 1 . 1 11 Treads . | . . . . . Leg 10 | 2 1 . 1 6 Wheel 5 | . . . . 5 Hover . | . . . . . Flight . | . . . . . Utility 11 | 1 3 . 1 6 Device 7 | . 1 . 1 5 Storage 3 | 1 1 . . 1 Processor . | . . . . . Hackware . | . . . . . Protection 1 | . 1 . . . Artifact . | . . . . . Weapon 14 | 2 2 . 2 8 Energy Gun 7 | 2 . . 2 3 Energy Cannon 4 | . 2 . . 2 Ballistic Gun . | . . . . . Ballistic Cannon . | . . . . . Launcher 3 | . . . . 3 Special Weapon . | . . . . . Impact Weapon . | . . . . . Slashing Weapon . | . . . . . Piercing Weapon . | . . . . . Special Melee Weapon . | . . . . . Unidentified Prototypes . | . . . . . Corrupted Parts 2 | . . . . 2 System Corruption 3 | . . . . 3 Parts Lost 18 | . 1 . 2 15 Power 1 | . 1 . . . Propulsion 11 | . . . 2 9 Utility 3 | . . . . 3 Weapon 3 | . . . . 3 Highest Loss Streak 5 | . 1 . 1 5 To Critical Strikes . | . . . . . Average Backups 10 | 1 6 11 11 12 Power 3 | . 2 3 3 3 Propulsion . | . . 1 . . Utility 1 | . 1 2 2 . Weapon 5 | . 2 5 5 8 Tool/Special . | . . . . . Unused Backups 14 | . . 1 2 11 Power 3 | . . . 1 2 Propulsion . | . . . . . Utility . | . . . . . Weapon 11 | . . 1 1 9 Tool/Special . | . . . . . Average Slot Usage (%) 89 | . 97 100 86 78 Engine 10 | . 13 14 11 4 Core 1 | . . . . 4 Leg 23 | . 28 28 31 14 Wheel 2 | . . . . 6 Device 13 | . 11 14 9 15 Storage 13 | . 14 14 11 14 Energy Gun 6 | . 4 . 10 10 Energy Cannon 16 | . 23 28 11 6 Peak Build Rating 30 | 6 8 8 11 30 Average Rating 11 | 4 7 8 10 19 On Entrance 6 | . 6 8 8 9 Naked Turns . | . . . . . Heaviest Build 47 | 12 32 32 34 47 Greatest Support 43 | 20 20 20 40 43 Greatest Overweight (x) 4 | . 1 1 1 4 Average Overweight (x) 1 | . . 1 . 1 Largest Inventory Capacity 15 | 8 15 15 15 15 Average Capacity 13 | 6 11 15 15 15 Most Carried 15 | 4 11 12 15 15 Average Carried 10 | 1 6 11 11 12 Final Capacity 15 | 8 15 15 15 15 Final Carried 11 | 2 11 11 10 9 Class Distribution -------------------- 70% | Mutant 29% | Scavenger-Mutant Dominant Class ---------------- Mutant | -10/Materials Mutant | -10/Mines Mutant | -9/Materials Scavenger-Mutant | -8/Materials Resources | -11 -10 -10 -9 -8 ----------- Run | Yrd Mat Min Mat Mat Matter Collected 886 | 230 135 . 60 461 Remotely . | . . . . . Salvage Created 2054 | . 454 . 341 1259 Parts 106 | . 25 . 22 59 Haulers Intercepted 1 | . . . . 1 Recyclers Shooed . | . . . . . Parts Field Recycled . | . . . . . Retrieved Matter . | . . . . . Parts Self-Destructed . | . . . . . Prevented . | . . . . . Kills | -11 -10 -10 -9 -8 ------- Run | Yrd Mat Min Mat Mat Combat Hostiles Destroyed 50 | . 13 . 12 25 Guns 17 | . 2 . 6 9 Cannons 27 | . 11 . 6 10 AOE 6 | . . . . 6 Classes Destroyed 12 | . 4 . 2 6 Worker 2 | . . . . 2 Builder 1 | . . . . 1 Hauler 1 | . . . . 1 Recycler 2 | . . . 1 1 Operator 1 | . 1 . . . Watcher 3 | . 1 . . 2 Swarmer 20 | . 6 . 10 4 Grunt 19 | . 7 . . 12 Brawler 1 | . . . . 1 Sentry 8 | . . . 2 6 Hunter 1 | . . . . 1 Heavy 1 | . . . . 1 Best Kill Streak 6 | . 3 . 4 6 Combat Bots Only 5 | . 3 . 3 5 Max Kills in Single Turn 2 | . 1 . 2 2 Gunslinging . | . . . . . Exploded 1 | . . . . 1 Melee . | . . . . . Uniques/NPCs Destroyed . | . . . . . Combat | -11 -10 -10 -9 -8 -------- Run | Yrd Mat Min Mat Mat Hostile Shots Fired 275 | . 60 . 70 145 Missed 87 | . 23 . 20 44 Hits 188 | . 37 . 50 101 Projectile 188 | . 37 . 50 101 Critical Strikes 6 | . . . 1 5 Damage Taken 2763 | . 365 . 462 1936 Core 480 | . 56 . 53 371 Absorbed by Shields . | . . . . . Core Remaining (%) 87 | 100 . 77 86 . Volleys Fired 149 | . 37 . 26 86 Largest 2 | . 2 . 2 2 Hottest 138 | . 120 . 125 138 Shots Fired 279 | . 74 . 52 153 Gun 126 | . 14 . 26 86 Cannon 141 | . 60 . 26 55 Launcher 12 | . . . . 12 Special . | . . . . . Kinetic . | . . . . . Thermal 225 | . 60 . 52 113 Explosive 9 | . . . . 9 Electromagnetic 45 | . 14 . . 31 Robot Hit Streak 14 | . 9 . 6 14 Robot Miss Streak 3 | . 3 . 3 3 Penetration Max . | . . . . . Secondary Targets . | . . . . . Shots Hit Robots 177 | . 42 . 29 106 Core Hits 87 | . 17 . 14 56 Critical Kills 1 | . . . 1 . Critical Parts Destroyed . | . . . . . Critical Strikes 6 | . . . 1 5 Burn 4 | . . . . 4 Meltdown 1 | . . . 1 . Corrupt 1 | . . . . 1 Melee Attacks . | . . . . . Impact . | . . . . . Slashing . | . . . . . Piercing . | . . . . . Sneak Attacks . | . . . . . Combat Hostiles . | . . . . . Follow-up Attacks . | . . . . . Damage Inflicted 3966 | . 714 . 534 2718 Guns 1290 | . 82 . 235 973 Cannons 1890 | . 632 . 299 959 Explosions 784 | . . . . 784 Melee . | . . . . . Ramming 2 | . . . . 2 Kinetic . | . . . . . Thermal 2718 | . 632 . 534 1552 Explosive 649 | . . . . 649 Electromagnetic 597 | . 82 . . 515 Impact . | . . . . . Slashing . | . . . . . Piercing . | . . . . . Highest Corruption 3 | . . . . 3 Average Corruption 2 | . . . . 2 Corruption Purged . | . . . . . Corruption Blocked . | . . . . . Effects 4 | . . . . 4 Message Errors 1 | . . . . 1 Matter Fused 2 | . . . . 2 Data Loss (major) 1 | . . . . 1 Overload Shots . | . . . . . Overflow Damage 65 | . 14 . 25 26 Projectiles 39 | . 14 . 25 . Explosions 26 | . . . . 26 Melee . | . . . . . Knockbacks . | . . . . . Impact . | . . . . . Kinetic . | . . . . . Secondary . | . . . . . Self-Inflicted Damage 107 | . . . . 107 Shots 4 | . . . . 4 Rammed 1 | . . . . 1 Targets Rammed 2 | . . . . 2 Kicked 1 | . . . . 1 Crushed . | . . . . . Highest Temperature 551 | . 210 . 216 551 Average Temperature 94 | . 53 . 61 139 Received Heat Transfer 852 | . 123 . 27 702 Effects 4 | . . . . 4 Damage (major) 3 | . . . . 3 Damage (core) 1 | . . . . 1 Siege Activations . | . . . . . Martial Activations . | . . . . . Shielding Activations . | . . . . . Robots Disrupted 1 | . . . . 1 Combat Hostiles 1 | . . . . 1 Robots Corrupted . | . . . . . Combat Hostiles . | . . . . . Parts Fried 1 | . . . . 1 Impact Corruptions . | . . . . . Robots Melted 1 | . . . 1 . Combat Hostiles . | . . . . . Parts Melted 15 | . 3 . 4 8 Heat Transferred 5957 | . 1332 . 1221 3404 Parts Sabotaged . | . . . . . Parts Stolen . | . . . . . Parts Stripped . | . . . . . Power Chain Reactions . | . . . . . Alert | -11 -10 -10 -9 -8 ------- Run | Yrd Mat Min Mat Mat Maximum Alert Level 1 | . . . 1 1 Low Security (%) 84 | 100 100 100 95 56 Level 1 15 | . . . 4 43 Level 2 . | . . . . . Level 3 . | . . . . . Level 4 . | . . . . . Level 5 . | . . . . . High Security . | . . . . . Max Security . | . . . . . Peak Influence 297 | . 80 . 205 297 Initial 67 | . . . . 67 Average 80 | . 28 . 93 176 Influence Increases 1546 | . 339 . 357 850 Destroy 0b10 Robot/C 1000 | . 260 . 240 500 Destroy 0b10 Robot/NC 50 | . 10 . 5 35 Destroy Leader 248 | . 52 . 50 146 Disable Machine 30 | . . . . 30 Destroy Structure 68 | . 2 . 2 64 Partial Spotted 30 | . . . . 30 Lose Combat Pursuer 120 | . 15 . 60 45 Influence Decreases 1257 | . 339 . 196 722 Entered New Map 94 | . . . . 94 Time Decay 983 | . 329 . 176 478 Lost Part 180 | . 10 . 20 150 Squads Dispatched 8 | . 2 . . 6 Investigation 1 | . . . . 1 Extermination . | . . . . . Reinforcement 7 | . 2 . . 5 Assault . | . . . . . Garrison . | . . . . . Intercept . | . . . . . Searches Triggered . | . . . . . Construction Impeded 1 | . . . . 1 Haulers Reinforced . | . . . . . Active Scanning Responses . | . . . . . Cargo Convoy Interrupts . | . . . . . Stealth | -11 -10 -10 -9 -8 --------- Run | Yrd Mat Min Mat Mat Distress Signals 5 | . 1 . 2 2 Communications Jammed . | . . . . . Distress Signals . | . . . . . Times Spotted 79 | . 24 . 18 37 Peak Tracking Total 5 | . 4 . 5 5 Tactical Retreats 6 | . 1 . 3 2 Traps | -11 -10 -10 -9 -8 ------- Run | Yrd Mat Min Mat Mat Traps Triggered 1 | . . . . 1 Indirectly . | . . . . . Trap Hack Attempts . | . . . . . Triggered . | . . . . . Disarmed . | . . . . . Reprogrammed . | . . . . . Reused . | . . . . . Traps Extracted . | . . . . . Installed . | . . . . . Triggered . | . . . . . Machines | -11 -10 -10 -9 -8 ---------- Run | Yrd Mat Min Mat Mat Machines Disabled 2 | . . . . 2 Max in Single Turn 1 | . . . . 1 Machines Repaired . | . . . . . Machines Dismantled . | . . . . . Machines Sabotaged . | . . . . . Overloaded Fab Kills . | . . . . . Hacking | -11 -10 -10 -9 -8 --------- Run | Yrd Mat Min Mat Mat Machines Accessed . | . . . . . Terminals . | . . . . . Fabricators . | . . . . . Repair Stations . | . . . . . Recycling Units . | . . . . . Scanalyzers . | . . . . . Garrison Access . | . . . . . Total Hacks . | . . . . . Successful . | . . . . . Failed . | . . . . . Catastrophic . | . . . . . Database Lockouts . | . . . . . Manual . | . . . . . Terminals . | . . . . . Fabricators . | . . . . . Repair Stations . | . . . . . Recycling Units . | . . . . . Scanalyzers . | . . . . . Garrison Access . | . . . . . Terminal Hacks . | . . . . . Fabricator Hacks . | . . . . . Repair Station Hacks . | . . . . . Recycling Unit Hacks . | . . . . . Scanalyzer . | . . . . . Garrison Access Hacks . | . . . . . Unauthorized Hacks . | . . . . . Terminals . | . . . . . Fabricators . | . . . . . Repair Stations . | . . . . . Recycling Units . | . . . . . Scanalyzers . | . . . . . Garrison Access . | . . . . . Data Cores Recovered 1 | . 1 . . . Used . | . . . . . Hacking Detections . | . . . . . Full Trace Events . | . . . . . Feedback Events . | . . . . . Feedback Blocked . | . . . . . Robot Schematics Acquired . | . . . . . Robots Built . | . . . . . Authchips . | . . . . . Time . | . . . . . Total Robot Build Rating . | . . . . . Part Schematics Acquired . | . . . . . Parts Built . | . . . . . Authchips . | . . . . . Time . | . . . . . Total Part Build Rating . | . . . . . Parts Repaired . | . . . . . Time . | . . . . . Parts Recycled . | . . . . . Recycled Matter . | . . . . . Retrieved Matter . | . . . . . Retrieved Components . | . . . . . Parts Scanalyzed . | . . . . . Part Schematics Acquired . | . . . . . Parts Damaged . | . . . . . Bothacking | -11 -10 -10 -9 -8 ------------ Run | Yrd Mat Min Mat Mat Used RIF Installer . | . . . . . Robots Hacked . | . . . . . Non-combat . | . . . . . Combat . | . . . . . Robot Hacks Applied . | . . . . . Relay Couplers Released . | . . . . . Fabnet Peak Effective % . | . . . . . Robots Rewired . | . . . . . Allies Hacked . | . . . . . Hacks Repelled . | . . . . . Allies | -11 -10 -10 -9 -8 -------- Run | Yrd Mat Min Mat Mat Total Allies . | . . . . . Largest Group . | . . . . . Highest-Rated Group . | . . . . . Highest-Rated Ally . | . . . . . Total Orders . | . . . . . Ally Attacks . | . . . . . Total Damage . | . . . . . Kills . | . . . . . Allies Corrupted . | . . . . . Allies Melted . | . . . . . Intel | -11 -10 -10 -9 -8 ------- Run | Yrd Mat Min Mat Mat Active Infowar (turns) 268 | . . . . 268 Jamming 268 | . . . . 268 Robot Analysis Total . | . . . . . Derelict Logs Recovered 2 | . . 2 . . Drone Launches . | . . . . . Drone Recoveries . | . . . . . Exploration | -11 -10 -10 -9 -8 ------------- Run | Yrd Mat Min Mat Mat Turns Passed 3760 | 91 953 853 627 1236 Spaces Moved 1828 | 67 516 449 260 536 Core 2 | 2 . . . . Treads . | . . . . . Legs 1562 | 65 516 449 260 272 Wheels 264 | . . . . 264 Hover . | . . . . . Flight . | . . . . . Fastest Speed 50 | 50 120 190 120 95 Average Speed 165 | 117 150 190 170 163 Slowest Speed 400 | 120 190 190 190 400 Overloaded Moves . | . . . . . Propulsion Burnouts . | . . . . . Robots Hopped . | . . . . . Potential Cave-ins . | . . . . . Cave-ins Triggered . | . . . . . Exploration Rate (%) 53 | 4 89 94 29 53 Regions Visited 4 Branch Regions 1 Pre-discovered Areas 1 | . . 1 . . Known Exits Taken . | . . . . . Unknown Exits Taken 4 | 1 1 1 1 . Scrap Searched 1 | . . 1 . . Spaces Dug . | . . . . . Terrain Destroyed 65 | . . . . 65 Melee . | . . . . . Projectile 5 | . . . . 5 AOE 60 | . . . . 60 Terrain Rammed . | . . . . . Walls Destroyed . | . . . . . Machines Disabled . | . . . . . Actions | -11 -10 -10 -9 -8 --------- Run | Yrd Mat Min Mat Mat Total 2270 | 78 613 450 389 740 Wait 165 | . 44 . 85 36 Move 1824 | 66 515 448 259 536 Hop . | . . . . . Pick Up 32 | 6 6 1 2 17 Fast Attach 21 | 2 . . 1 18 Attach 14 | 4 2 . 1 7 Detach . | . . . . . Swap 33 | . 9 . 9 15 Drop 30 | . . 1 6 23 Fire 149 | . 37 . 26 86 Melee . | . . . . . Ram 1 | . . . . 1 Kick 1 | . . . . 1 Crush . | . . . . . Escape Stasis . | . . . . . Rewire . | . . . . . Trap . | . . . . . Miscellaneous . | . . . . . Route ------- -11/Scrapyard -10/Materials (discovered 5 exits: [*Mat x3] / [*Min x2]) -10/Mines (discovered 2 exits: [*Mat x2]) -9/Materials (discovered 3 exits: [*Mat] / Min / [*Sto]) -8/Materials (discovered 1 exit: [*Fac]) History --------- Turn | Location | Event 25 | -11/Scrapyard | Discovered new exit (range 15) 92 | -11/Scrapyard | Entered Materials 232 | -10/Materials | Discovered new exit (range 11) 300 | -10/Materials | Build established: Mutant 336 | -10/Materials | Discovered new exit (range 15) 433 | -10/Materials | Discovered new exit (range 8) 477 | -10/Materials | Discovered new exit (range 13) 527 | -10/Materials | Discovered new exit (range 3) 1045 | -10/Materials | Entered Mines 1386 | -10/Mines | Discovered new exit (range 16) 1398 | -10/Mines | Learned location of Storage (-9) 1405 | -10/Mines | Learned Materials stockpile data 1408 | -10/Mines | Learned location of 1 exit from Materials 1621 | -10/Mines | Received a Rocket Launcher from a helpful Derelict 1889 | -10/Mines | Discovered new exit (range 5) 1898 | -10/Mines | Entered Materials 1898 | -9/Materials | Evolved 2 slots: Propulsion x2 1899 | -9/Materials | Identified exit to Mines 2263 | -9/Materials | Discovered new exit (range 14) 2344 | -9/Materials | Discovered new exit (range 15) 2525 | -9/Materials | Entered another Materials area 2525 | -8/Materials | Evolved 2 slots: Utility x2 2736 | -8/Materials | Lost 4 parts (2n1u1w) 2954 | -8/Materials | Build established: Scavenger-Mutant 3154 | -8/Materials | Discovered new exit (range 4) 3437 | -8/Materials | Lost 5 parts (2n2u1w) 3677 | -8/Materials | Core integrity fell below 50% 3738 | -8/Materials | Lost 3 parts (2n1w) 3761 | -8/Materials | Self-destructed Last Messages --------------- 03677_ Overheating: VSS Leg damaged (-57). 03677_ Internal heat damage averted by Cryofiber Web. 03678_ Overheating: Core damaged (-77). 03678_ Hvy. Particle Cannon destroyed. 03680_ Internal heat damage averted by Cryofiber Web. 03684_ U-05 Engineer builds a Wall. 03691_ Power failure averted by Cryofiber Web. 03692_ G-47 Trooper heat short circuits Imp. Heat Sink. 03693_ G-47 Trooper destroyed. 03695_ FISFSD1STZ2D0:6N4IKLADA>ZU 3ZDF|7 3 03699_ Acquired 37 matter. 03701_ Acquired Aluminum Leg. 03706_ A-02 Transporter destroyed. 03707_ VSS Leg destroyed. 03710_ Terminal disabled. 03712_ G-47 Trooper destroyed. 03734_ System corrupted: Matter fused (-10). Map ----- +----------------------------------------------------+ | #/ #??????# #####????????????????????????? | | # """ #??????# " #?##########?????????????? | | # """ #??????# ### #?# #?????????????? | | #* """ #??????# ### ### "T" #?????????????? | | # #??????####### # #?????????????? | | ###+################# # #?????????????? | | + ! T + #?????????????? | | # ################# # """ #?????????????? | | # #???????????????# # """ #?????????????? | | #???????????????## ## """ #?????????????? | | #????????????????# ## #?????????????? | | ######???????????# ###########?????????????? | | " #####?????# #?# #?????????????? | | =%T ##??### ### #?????????????? | | ###?# # #?????????????? | | * % #?# + " #?????????????? | | % ### # """ #?????????????? | | === % =%= + """ / #?????????????? | | = ## # """ #?????????????? | | T" =% ##### # "" !#?????????????? | | ""# ##??# # """ #?????????????? | | ###### ########??#####+#### "" #?????????????? | | ?????#???????##???# # """ #?????????????? | | ??????????????????# """"" # " ?? #?????????????? | | ??????????????????# """"" # ?????????????????? | | ??????????????????# """""@ # ? ????????????????? | | ??????????????????# # ??????????????????? | | ??????????????????#% # ??????????????????? | | ??????????????????# "" ! # ??????????????????? | | ??????????????????# S"" ####??????????????????? | | ??????????????????# "" [ #?????????????????????? | | ??????????????????##########?????????????????????? | | ?????????????????????????????????????????????????? | | ##???????????????????????????????????????????????? | | ??????????????????????????????????????????????? | | ??????????????????????????????????????????????? | | ??????????????????????????????????????????????? | | ?????????????????????????????????????????????????? | | ?????????????????????????????????????????????????? | | ?????????????????????????????????????????????????? | | ?????????????????????????????????????????????????? | | ?????????????????????????????????????????????????? | | ?????????????????????????????????????????????????? | | ?????????????????????????????????????????????????? | | ###+######+###???????????????????????????????????? | | ??????????????????????????????????? | | ??????????????????????????????????? | | ??????????????????????????????????? | | +#######?????????????????????????????????????????? | | #??????????????????????????????????????????????? | +----------------------------------------------------+ Best States ------------- Heat Dissipation 59 Energy Generation 16 Energy Capacity 290 Matter Stores 300 Matter Capacity 300 Sight Range 16 Terrain Scan Density 10 Jamming Range 12 Base Temperature (-) 100 Armor Coverage 150 Weapon Cycling 15 Evasion (%) 55 Item Schematics ----------------- None Robot Schematics ------------------ None Fabricated ------------ Nothing Repaired ---------- Nothing Alien Tech Used ----------------- None Achievements -------------- None Challenges ------------ None Game ------ Seed GravitonSegregatorSuit Manual? 0 Play Time 00:22:38 Cumulative 26.8 hours Start 2025.08.07 @ 17:35:32 End 2025.08.07 @ 21:59:17 Sessions 3 Manual Loads 0 Difficulty Rogue Special Mode None Game No. 76 Rogue 76 Adventurer 0 Explorer 0 Win Type - Total 0 Types 0/0/0/0/0/0/0/0/0/0 Lore% 11 Gallery% 25 Achievement% 21 Wizard Run 0 Options --------- Layout 1 ASCII 0 Keyboard 0 Movement Mouse Keybinds 0 Fullscreen 2 Font 24/Smallcaps Map View 50x35 Zoom Use 0% Tactical HUD 1 Map Filters NONE Filters NONE Steam 1 RUN: e4115b88-00b5-48b6-87c3-4be43206bc4a